[Event "December 5 Early 2023"]
[Site "https://www.chess.com"]
[Date "2023.12.05"]
[Round "1"]
[White "Hua, Lefong"]
[Black "Matthes, Aaron"]
[Result "1-0"]
[Board "121"]
[TimeControl "180+1"]
[WhiteFideId "2602253"]
[BlackFideId "16227310"]
[WhiteElo "2700"]
[BlackElo "2402"]
[WhiteTeam "CAN"]
[BlackTeam "GER"]
[WhiteClock "0:01:52"]
[BlackClock "0:00:49"]

1. d4 {[%clk 0:03:00]}  Nf6 {[%clk 0:02:58]} 2. c4 {[%clk 0:03:00]}  b6 {[%clk 0:02:58]} 3. Nc3 {[%clk 0:03:00]}  Bb7 {[%clk 0:02:59]} 4. f3 {[%clk 0:03:00]}  e6 {[%clk 0:02:54]} 5. e4 {[%clk 0:03:00]}  Bb4 {[%clk 0:02:54]} 6. Bd3 {[%clk 0:02:59]}  c5 {[%clk 0:02:54]} 7. d5 {[%clk 0:02:57]}  d6 {[%clk 0:02:48]} 8. Ne2 {[%clk 0:02:57]}  Nbd7 {[%clk 0:02:47]} 9. O-O {[%clk 0:02:54]}  Qe7 {[%clk 0:02:40]} 10. a3 {[%clk 0:02:52]}  Bxc3 {[%clk 0:02:40]} 11. Nxc3 {[%clk 0:02:53]}  e5 {[%clk 0:02:35]} 12. b4 {[%clk 0:02:50]}  h6 {[%clk 0:02:30]} 13. Rb1 {[%clk 0:02:49]}  Rc8 {[%clk 0:02:23]} 14. Qa4 {[%clk 0:02:43]}  O-O {[%clk 0:01:57]} 15. Qxa7 {[%clk 0:02:33]}  Rc7 {[%clk 0:01:57]} 16. Qa4 {[%clk 0:02:31]}  Nh5 {[%clk 0:01:44]} 17. Re1 {[%clk 0:02:02]}  Qh4 {[%clk 0:01:37]} 18. Qd1 {[%clk 0:01:59]}  Ra8 {[%clk 0:01:28]} 19. Nb5 {[%clk 0:01:55]}  cxb4 {[%clk 0:01:16]} 20. axb4 {[%clk 0:01:52]}  Rcc8 {[%clk 0:00:49]} 21. Nxd6 {[%clk 0:01:52]} 1-0

[Event "December 5 Early 2023"]
[Site "https://www.chess.com"]
[Date "2023.12.05"]
[Round "1"]
[White "Williams, Simon K"]
[Black "Caetano, Ryan Wesley Da Costa"]
[Result "1-0"]
[Board "123"]
[TimeControl "180+1"]
[WhiteFideId "404454"]
[BlackFideId "2188554"]
[WhiteElo "2694"]
[BlackElo "2402"]
[WhiteTeam "ENG"]
[BlackTeam "BRA"]
[WhiteClock "0:02:06"]
[BlackClock "0:01:07"]

1. d4 {[%clk 0:02:58]}  Nf6 {[%clk 0:02:58]} 2. Bg5 {[%clk 0:02:57]}  d5 {[%clk 0:02:57]} 3. Bxf6 {[%clk 0:02:56]}  exf6 {[%clk 0:02:56]} 4. e3 {[%clk 0:02:55]}  g6 {[%clk 0:02:55]} 5. Bd3 {[%clk 0:02:54]}  Bg7 {[%clk 0:02:55]} 6. Nd2 {[%clk 0:02:53]}  O-O {[%clk 0:02:51]} 7. h4 {[%clk 0:02:52]}  c6 {[%clk 0:02:47]} 8. h5 {[%clk 0:02:52]}  f5 {[%clk 0:01:59]} 9. hxg6 {[%clk 0:02:46]}  fxg6 {[%clk 0:02:00]} 10. Nh3 {[%clk 0:02:42]}  Nd7 {[%clk 0:01:57]} 11. Nf4 {[%clk 0:02:37]}  Nf6 {[%clk 0:01:56]} 12. Qf3 {[%clk 0:02:37]}  Qb6 {[%clk 0:01:50]} 13. O-O-O {[%clk 0:02:35]}  a5 {[%clk 0:01:43]} 14. Qh3 {[%clk 0:02:24]}  Rf7 {[%clk 0:01:39]} 15. Nf3 {[%clk 0:02:24]}  a4 {[%clk 0:01:31]} 16. a3 {[%clk 0:02:18]}  Qc7 {[%clk 0:01:30]} 17. Ng5 {[%clk 0:02:10]}  Re7 {[%clk 0:01:07]} 18. Nxh7 {[%clk 0:02:06]} 1-0

[Event "December 5 Early 2023"]
[Site "https://www.chess.com"]
[Date "2023.12.05"]
[Round "1"]
[White "Makhnev, Denis"]
[Black "Federzoni, Enzo"]
[Result "1-0"]
[Board "125"]
[TimeControl "180+1"]
[WhiteFideId "13707647"]
[BlackFideId "2173301"]
[WhiteElo "2688"]
[BlackElo "2401"]
[WhiteTeam "KAZ"]
[BlackTeam "BRA"]
[WhiteClock "0:00:09"]
[BlackClock "0:00:17"]

1. Nf3 {[%clk 0:03:00]}  Nf6 {[%clk 0:02:58]} 2. c4 {[%clk 0:02:59]}  e6 {[%clk 0:02:58]} 3. g3 {[%clk 0:02:58]}  d5 {[%clk 0:02:58]} 4. Bg2 {[%clk 0:02:59]}  c6 {[%clk 0:02:57]} 5. b3 {[%clk 0:02:56]}  Be7 {[%clk 0:02:57]} 6. O-O {[%clk 0:02:56]}  O-O {[%clk 0:02:58]} 7. d4 {[%clk 0:02:54]}  b6 {[%clk 0:02:58]} 8. Bb2 {[%clk 0:02:53]}  Nbd7 {[%clk 0:02:58]} 9. Qc2 {[%clk 0:02:52]}  Ba6 {[%clk 0:02:56]} 10. Nbd2 {[%clk 0:02:51]}  Rc8 {[%clk 0:02:54]} 11. e4 {[%clk 0:02:51]}  dxe4 {[%clk 0:02:52]} 12. Nxe4 {[%clk 0:02:46]}  Nxe4 {[%clk 0:02:52]} 13. Qxe4 {[%clk 0:02:45]}  Nf6 {[%clk 0:02:53]} 14. Qc2 {[%clk 0:02:45]}  Bb7 {[%clk 0:02:53]} 15. Rad1 {[%clk 0:02:40]}  Qc7 {[%clk 0:02:52]} 16. c5 {[%clk 0:02:38]}  Rcd8 {[%clk 0:02:47]} 17. Ne5 {[%clk 0:02:36]}  Nd5 {[%clk 0:02:46]} 18. Rfe1 {[%clk 0:02:34]}  b5 {[%clk 0:02:43]} 19. a3 {[%clk 0:02:32]}  Bf6 {[%clk 0:02:43]} 20. h4 {[%clk 0:02:27]}  a5 {[%clk 0:02:40]} 21. h5 {[%clk 0:02:26]}  h6 {[%clk 0:02:40]} 22. Bf1 {[%clk 0:02:20]}  b4 {[%clk 0:02:36]} 23. a4 {[%clk 0:02:19]}  Bxe5 {[%clk 0:02:36]} 24. dxe5 {[%clk 0:02:08]}  Qc8 {[%clk 0:02:34]} 25. Qc4 {[%clk 0:02:03]}  Rd7 {[%clk 0:02:27]} 26. Bd3 {[%clk 0:02:00]}  f5 {[%clk 0:02:12]} 27. exf6 {[%clk 0:01:58]}  Nxf6 {[%clk 0:02:10]} 28. Qxe6+ {[%clk 0:01:54]}  Rdf7 {[%clk 0:01:42]} 29. Bg6 {[%clk 0:01:43]}  Qxe6 {[%clk 0:01:42]} 30. Rxe6 {[%clk 0:01:44]}  Rc7 {[%clk 0:01:38]} 31. Bxf6 {[%clk 0:01:39]}  gxf6 {[%clk 0:01:39]} 32. Red6 {[%clk 0:01:30]}  Re7 {[%clk 0:01:36]} 33. Rd7 {[%clk 0:01:29]}  Rxd7 {[%clk 0:01:36]} 34. Rxd7 {[%clk 0:01:30]}  Ba6 {[%clk 0:01:37]} 35. Rd6 {[%clk 0:01:26]}  Be2 {[%clk 0:01:37]} 36. Rxc6 {[%clk 0:01:24]}  Bf3 {[%clk 0:01:35]} 37. Rd6 {[%clk 0:01:23]}  Rc8 {[%clk 0:01:35]} 38. Rd3 {[%clk 0:01:12]}  Be2 {[%clk 0:01:30]} 39. Rd5 {[%clk 0:01:12]}  Bf3 {[%clk 0:01:25]} 40. Rd3 {[%clk 0:01:01]}  Be2 {[%clk 0:01:21]} 41. Re3 {[%clk 0:01:01]}  Bd1 {[%clk 0:01:18]} 42. Rd3 {[%clk 0:00:23]}  Bc2 {[%clk 0:01:10]} 43. Rf3 {[%clk 0:00:20]}  Bxg6 {[%clk 0:01:08]} 44. hxg6 {[%clk 0:00:19]}  Rxc5 {[%clk 0:01:02]} 45. Rxf6 {[%clk 0:00:19]}  Rc3 {[%clk 0:00:57]} 46. Ra6 {[%clk 0:00:18]}  Rxb3 {[%clk 0:00:53]} 47. Rxa5 {[%clk 0:00:19]}  Kg7 {[%clk 0:00:52]} 48. Ra6 {[%clk 0:00:19]}  Ra3 {[%clk 0:00:51]} 49. Kg2 {[%clk 0:00:19]}  b3 {[%clk 0:00:48]} 50. a5 {[%clk 0:00:19]}  b2 {[%clk 0:00:45]} 51. Rb6 {[%clk 0:00:19]}  Rxa5 {[%clk 0:00:45]} 52. Rxb2 {[%clk 0:00:19]}  Kxg6 {[%clk 0:00:45]} 53. Rb6+ {[%clk 0:00:19]}  Kg7 {[%clk 0:00:45]} 54. f4 {[%clk 0:00:19]}  Ra3 {[%clk 0:00:45]} 55. Kh3 {[%clk 0:00:19]}  Ra1 {[%clk 0:00:42]} 56. Kg4 {[%clk 0:00:19]}  Ra2 {[%clk 0:00:43]} 57. Rb7+ {[%clk 0:00:18]}  Kf6 {[%clk 0:00:40]} 58. Rb6+ {[%clk 0:00:17]}  Kg7 {[%clk 0:00:40]} 59. Rc6 {[%clk 0:00:16]}  Ra5 {[%clk 0:00:40]} 60. Re6 {[%clk 0:00:15]}  Rb5 {[%clk 0:00:39]} 61. Re5 {[%clk 0:00:16]}  Rb1 {[%clk 0:00:40]} 62. Kf5 {[%clk 0:00:15]}  Rg1 {[%clk 0:00:39]} 63. g4 {[%clk 0:00:15]}  Ra1 {[%clk 0:00:35]} 64. Re7+ {[%clk 0:00:15]}  Kf8 {[%clk 0:00:35]} 65. Rh7 {[%clk 0:00:14]}  Ra5+ {[%clk 0:00:32]} 66. Kg6 {[%clk 0:00:13]}  Ra6+ {[%clk 0:00:32]} 67. Kh5 {[%clk 0:00:13]}  Ra4 {[%clk 0:00:29]} 68. f5 {[%clk 0:00:13]}  Kg8 {[%clk 0:00:29]} 69. Rxh6 {[%clk 0:00:13]}  Kg7 {[%clk 0:00:29]} 70. Rg6+ {[%clk 0:00:13]}  Kf7 {[%clk 0:00:30]} 71. Rc6 {[%clk 0:00:13]}  Ra1 {[%clk 0:00:30]} 72. Kg5 {[%clk 0:00:13]}  Ra7 {[%clk 0:00:29]} 73. Rh6 {[%clk 0:00:12]}  Kg7 {[%clk 0:00:30]} 74. Rg6+ {[%clk 0:00:13]}  Kh7 {[%clk 0:00:30]} 75. Rb6 {[%clk 0:00:13]}  Kg7 {[%clk 0:00:30]} 76. Kh5 {[%clk 0:00:13]}  Kh7 {[%clk 0:00:31]} 77. g5 {[%clk 0:00:14]}  Re7 {[%clk 0:00:30]} 78. f6 {[%clk 0:00:14]}  Re8 {[%clk 0:00:28]} 79. g6+ {[%clk 0:00:13]}  Kh8 {[%clk 0:00:29]} 80. Kh6 {[%clk 0:00:14]}  Rd8 {[%clk 0:00:24]} 81. f7 {[%clk 0:00:12]}  Rd6 {[%clk 0:00:17]} 82. f8=Q# {[%clk 0:00:09]} 1-0

[Event "December 5 Early 2023"]
[Site "https://www.chess.com"]
[Date "2023.12.05"]
[Round "1"]
[White "Marcziter, Dmitrii"]
[Black "Nigalidze, Gaioz"]
[Result "0-1"]
[Board "126"]
[TimeControl "180+1"]
[WhiteFideId "13900765"]
[BlackFideId "13603078"]
[WhiteElo "2400"]
[BlackElo "2687"]
[WhiteTeam "GER"]
[BlackTeam "GEO"]
[WhiteClock "0:00:00"]
[BlackClock "0:00:52"]

1. d4 {[%clk 0:02:12]}  Nf6 {[%clk 0:02:58]} 2. c4 {[%clk 0:02:11]}  c5 {[%clk 0:02:58]} 3. d5 {[%clk 0:02:10]}  e6 {[%clk 0:02:57]} 4. Nc3 {[%clk 0:02:09]}  exd5 {[%clk 0:02:57]} 5. cxd5 {[%clk 0:02:08]}  d6 {[%clk 0:02:56]} 6. Nf3 {[%clk 0:02:06]}  g6 {[%clk 0:02:56]} 7. Nd2 {[%clk 0:02:06]}  Bg7 {[%clk 0:02:55]} 8. Nc4 {[%clk 0:02:07]}  a6 {[%clk 0:02:52]} 9. Bf4 {[%clk 0:02:05]}  Bf8 {[%clk 0:02:47]} 10. a4 {[%clk 0:02:03]}  Be7 {[%clk 0:02:47]} 11. h3 {[%clk 0:02:00]}  Qc7 {[%clk 0:02:46]} 12. e3 {[%clk 0:01:56]}  Nbd7 {[%clk 0:02:47]} 13. a5 {[%clk 0:01:55]}  b5 {[%clk 0:02:43]} 14. axb6 {[%clk 0:01:55]}  Nxb6 {[%clk 0:02:43]} 15. Be2 {[%clk 0:01:47]}  Bb7 {[%clk 0:02:42]} 16. e4 {[%clk 0:01:45]}  O-O {[%clk 0:02:40]} 17. O-O {[%clk 0:01:44]}  Rfe8 {[%clk 0:02:39]} 18. Qc2 {[%clk 0:01:42]}  Bf8 {[%clk 0:02:37]} 19. Na5 {[%clk 0:01:41]}  Nfd7 {[%clk 0:02:29]} 20. Rfe1 {[%clk 0:01:37]}  Bg7 {[%clk 0:02:26]} 21. Bf1 {[%clk 0:01:36]}  Be5 {[%clk 0:02:26]} 22. Bh6 {[%clk 0:01:33]}  Bd4 {[%clk 0:02:25]} 23. Kh1 {[%clk 0:01:32]}  Re7 {[%clk 0:02:20]} 24. Bg5 {[%clk 0:01:30]}  Bf6 {[%clk 0:02:19]} 25. Bxf6 {[%clk 0:01:29]}  Nxf6 {[%clk 0:02:19]} 26. Nxb7 {[%clk 0:01:25]}  Qxb7 {[%clk 0:02:18]} 27. f4 {[%clk 0:01:20]}  Nh5 {[%clk 0:02:16]} 28. Qf2 {[%clk 0:01:18]}  c4 {[%clk 0:02:08]} 29. g4 {[%clk 0:01:16]}  Nf6 {[%clk 0:02:03]} 30. Bg2 {[%clk 0:01:16]}  Nbd7 {[%clk 0:01:57]} 31. e5 {[%clk 0:01:13]}  Ne8 {[%clk 0:01:55]} 32. e6 {[%clk 0:01:13]}  Nc5 {[%clk 0:01:51]} 33. exf7+ {[%clk 0:01:11]}  Rxf7 {[%clk 0:01:49]} 34. Re6 {[%clk 0:01:01]}  Rb8 {[%clk 0:01:45]} 35. Rae1 {[%clk 0:00:58]}  Ng7 {[%clk 0:01:44]} 36. Rxd6 {[%clk 0:00:51]}  Nd3 {[%clk 0:01:43]} 37. Qd2 {[%clk 0:00:45]}  Nxe1 {[%clk 0:01:43]} 38. Qxe1 {[%clk 0:00:45]}  Qxb2 {[%clk 0:01:38]} 39. Rxa6 {[%clk 0:00:33]}  Rxf4 {[%clk 0:01:37]} 40. d6 {[%clk 0:00:30]}  Rd4 {[%clk 0:01:31]} 41. Nd5 {[%clk 0:00:27]}  Rd2 {[%clk 0:01:18]} 42. Ne7+ {[%clk 0:00:22]}  Kh8 {[%clk 0:01:11]} 43. Qe4 {[%clk 0:00:15]}  c3 {[%clk 0:00:58]} 44. Ra8 {[%clk 0:00:05]}  c2 {[%clk 0:00:53]} 45. Rxb8+ {[%clk 0:00:02]}  Qxb8 {[%clk 0:00:52]} 46. Nc6 {[%clk 0:00:00]}  c1=Q+ {[%clk 0:00:52]} 0-1

[Event "December 5 Early 2023"]
[Site "https://www.chess.com"]
[Date "2023.12.05"]
[Round "1"]
[White "Sai Han Thiha"]
[Black "Tasev, Dejan"]
[Result "1-0"]
[Board "128"]
[TimeControl "180+1"]
[WhiteFideId "13012290"]
[BlackFideId "936618"]
[WhiteElo "2395"]
[BlackElo "2680"]
[WhiteTeam "MYA"]
[BlackTeam "SRB"]
[WhiteClock "0:00:37"]
[BlackClock "0:00:20"]

1. Nf3 {[%clk 0:03:00]}  Nf6 {[%clk 0:02:59]} 2. g3 {[%clk 0:03:01]}  g6 {[%clk 0:02:59]} 3. b3 {[%clk 0:03:01]}  Bg7 {[%clk 0:03:00]} 4. Bb2 {[%clk 0:03:02]}  O-O {[%clk 0:03:00]} 5. Bg2 {[%clk 0:03:03]}  b6 {[%clk 0:03:00]} 6. Ne5 {[%clk 0:02:55]}  c6 {[%clk 0:03:00]} 7. c4 {[%clk 0:02:51]}  Bb7 {[%clk 0:02:59]} 8. d4 {[%clk 0:02:46]}  d6 {[%clk 0:02:58]} 9. Nd3 {[%clk 0:02:46]}  Nbd7 {[%clk 0:02:58]} 10. e4 {[%clk 0:02:44]}  Qc7 {[%clk 0:02:58]} 11. O-O {[%clk 0:02:43]}  e5 {[%clk 0:02:58]} 12. d5 {[%clk 0:02:36]}  c5 {[%clk 0:02:54]} 13. Nc3 {[%clk 0:02:35]}  a6 {[%clk 0:02:53]} 14. f4 {[%clk 0:02:33]}  exf4 {[%clk 0:02:47]} 15. gxf4 {[%clk 0:02:29]}  Rae8 {[%clk 0:02:43]} 16. Qf3 {[%clk 0:02:09]}  b5 {[%clk 0:02:34]} 17. Rae1 {[%clk 0:01:58]}  bxc4 {[%clk 0:02:29]} 18. bxc4 {[%clk 0:01:59]}  Nb6 {[%clk 0:02:27]} 19. e5 {[%clk 0:01:56]}  Nh5 {[%clk 0:02:14]} 20. exd6 {[%clk 0:01:30]}  Bd4+ {[%clk 0:01:51]} 21. Kh1 {[%clk 0:01:30]}  Qxd6 {[%clk 0:01:46]} 22. Ne4 {[%clk 0:01:23]}  Rxe4 {[%clk 0:01:28]} 23. Qxe4 {[%clk 0:01:13]}  Nxc4 {[%clk 0:01:13]} 24. Bxd4 {[%clk 0:01:13]}  Nd2 {[%clk 0:01:05]} 25. Qe5 {[%clk 0:00:59]}  Qxe5 {[%clk 0:01:04]} 26. Bxe5 {[%clk 0:01:00]}  Nxf1 {[%clk 0:01:04]} 27. Rxf1 {[%clk 0:01:01]}  Rd8 {[%clk 0:00:50]} 28. d6 {[%clk 0:00:58]}  Bxg2+ {[%clk 0:00:47]} 29. Kxg2 {[%clk 0:00:58]}  f6 {[%clk 0:00:47]} 30. Nxc5 {[%clk 0:00:52]}  fxe5 {[%clk 0:00:38]} 31. fxe5 {[%clk 0:00:53]}  Ng7 {[%clk 0:00:32]} 32. d7 {[%clk 0:00:52]}  Nf5 {[%clk 0:00:30]} 33. e6 {[%clk 0:00:47]}  Kf8 {[%clk 0:00:26]} 34. Rxf5+ {[%clk 0:00:36]}  gxf5 {[%clk 0:00:26]} 35. Nb7 {[%clk 0:00:37]}  Ke7 {[%clk 0:00:24]} 36. Nxd8 {[%clk 0:00:36]}  Kxd8 {[%clk 0:00:20]} 37. Kf3 {[%clk 0:00:37]} 1-0

[Event "December 5 Early 2023"]
[Site "https://www.chess.com"]
[Date "2023.12.05"]
[Round "1"]
[White "Carre, Sylvain"]
[Black "Goltsev, Dmitry"]
[Result "1-0"]
[Board "132"]
[TimeControl "180+1"]
[WhiteFideId "642118"]
[BlackFideId "24176710"]
[WhiteElo "2378"]
[BlackElo "2669"]
[WhiteTeam "FRA"]
[BlackTeam "RUS"]
[WhiteClock "0:00:08"]
[BlackClock "0:00:00"]

1. d4 {[%clk 0:03:00]}  e6 {[%clk 0:02:57]} 2. Bf4 {[%clk 0:03:01]}  a6 {[%clk 0:02:57]} 3. e3 {[%clk 0:03:01]}  Nf6 {[%clk 0:02:58]} 4. Nf3 {[%clk 0:03:01]}  b5 {[%clk 0:02:58]} 5. a4 {[%clk 0:03:00]}  Bb7 {[%clk 0:02:59]} 6. axb5 {[%clk 0:02:59]}  axb5 {[%clk 0:03:00]} 7. Rxa8 {[%clk 0:02:59]}  Bxa8 {[%clk 0:03:01]} 8. Bxb5 {[%clk 0:02:58]}  Be7 {[%clk 0:03:01]} 9. O-O {[%clk 0:02:55]}  O-O {[%clk 0:02:58]} 10. h3 {[%clk 0:02:56]}  Nd5 {[%clk 0:02:56]} 11. Bg3 {[%clk 0:02:54]}  f5 {[%clk 0:02:55]} 12. c4 {[%clk 0:02:48]}  Nf6 {[%clk 0:02:54]} 13. Nc3 {[%clk 0:02:48]}  Nc6 {[%clk 0:02:45]} 14. Ne5 {[%clk 0:02:37]}  Nb4 {[%clk 0:02:41]} 15. c5 {[%clk 0:02:26]}  c6 {[%clk 0:02:40]} 16. Bc4 {[%clk 0:02:19]}  Bb7 {[%clk 0:02:39]} 17. Qb3 {[%clk 0:02:17]}  Qa5 {[%clk 0:02:38]} 18. Bh4 {[%clk 0:01:54]}  Bc8 {[%clk 0:02:27]} 19. Na4 {[%clk 0:01:49]}  Nbd5 {[%clk 0:02:11]} 20. Nb6 {[%clk 0:01:25]}  Rd8 {[%clk 0:02:00]} 21. Bxd5 {[%clk 0:01:16]}  Nxd5 {[%clk 0:01:44]} 22. Bxe7 {[%clk 0:01:07]}  Nxe7 {[%clk 0:01:45]} 23. Nxc8 {[%clk 0:01:05]}  Nxc8 {[%clk 0:01:41]} 24. Qa3 {[%clk 0:00:57]}  Qc7 {[%clk 0:01:38]} 25. Ra1 {[%clk 0:00:54]}  Qb7 {[%clk 0:01:25]} 26. b4 {[%clk 0:00:37]}  Ne7 {[%clk 0:01:22]} 27. Qa5 {[%clk 0:00:33]}  Rb8 {[%clk 0:01:13]} 28. Nc4 {[%clk 0:00:31]}  Qxb4 {[%clk 0:01:04]} 29. Qxb4 {[%clk 0:00:30]}  Rxb4 {[%clk 0:01:05]} 30. Ra8+ {[%clk 0:00:26]}  Kf7 {[%clk 0:01:04]} 31. Ne5+ {[%clk 0:00:26]}  Kf6 {[%clk 0:00:59]} 32. Nxd7+ {[%clk 0:00:27]}  Kg5 {[%clk 0:00:58]} 33. Ne5 {[%clk 0:00:25]}  Rb2 {[%clk 0:00:47]} 34. g3 {[%clk 0:00:22]}  Kf6 {[%clk 0:00:43]} 35. Ra6 {[%clk 0:00:20]}  Nd5 {[%clk 0:00:29]} 36. h4 {[%clk 0:00:20]}  Rb1+ {[%clk 0:00:14]} 37. Kg2 {[%clk 0:00:20]}  Rb2 {[%clk 0:00:15]} 38. Kf3 {[%clk 0:00:20]}  g5 {[%clk 0:00:09]} 39. hxg5+ {[%clk 0:00:20]}  Kxg5 {[%clk 0:00:10]} 40. Rxc6 {[%clk 0:00:18]}  Nc3 {[%clk 0:00:11]} 41. Rxe6 {[%clk 0:00:11]}  f4 {[%clk 0:00:10]} 42. gxf4+ {[%clk 0:00:10]}  Kf5 {[%clk 0:00:10]} 43. Rh6 {[%clk 0:00:09]}  Ne4 {[%clk 0:00:02]} 44. Rh5+ {[%clk 0:00:08]}  Ke6 {[%clk 0:00:02]} 45. Kxe4 {[%clk 0:00:08]}  Rxf2 {[%clk 0:00:03]} 46. Rh6+ {[%clk 0:00:08]}  Ke7 {[%clk 0:00:03]} 47. Rxh7+ {[%clk 0:00:08]}  Ke8 {[%clk 0:00:03]} 48. Ra7 {[%clk 0:00:08]}  Rb2 {[%clk 0:00:02]} 49. c6 {[%clk 0:00:07]}  Kd8 {[%clk 0:00:02]} 50. c7+ {[%clk 0:00:06]}  Kc8 {[%clk 0:00:02]} 51. Ra5 {[%clk 0:00:06]}  Rb6 {[%clk 0:00:02]} 52. Rd5 {[%clk 0:00:06]}  Re6 {[%clk 0:00:02]} 53. f5 {[%clk 0:00:06]}  Rh6 {[%clk 0:00:02]} 54. Ng4 {[%clk 0:00:06]}  Rh4 {[%clk 0:00:03]} 55. Kf4 {[%clk 0:00:06]}  Rh1 {[%clk 0:00:02]} 56. Rd8+ {[%clk 0:00:06]}  Kxc7 {[%clk 0:00:02]} 57. Rd5 {[%clk 0:00:07]}  Rf1+ {[%clk 0:00:03]} 58. Ke5 {[%clk 0:00:07]}  Kc6 {[%clk 0:00:04]} 59. Rd6+ {[%clk 0:00:07]}  Kc7 {[%clk 0:00:04]} 60. Rg6 {[%clk 0:00:08]}  Kd7 {[%clk 0:00:04]} 61. e4 {[%clk 0:00:09]}  Ke7 {[%clk 0:00:05]} 62. d5 {[%clk 0:00:09]}  Kf7 {[%clk 0:00:05]} 63. Rf6+ {[%clk 0:00:10]}  Kg7 {[%clk 0:00:05]} 64. Rc6 {[%clk 0:00:10]}  Rg1 {[%clk 0:00:05]} 65. Nf6 {[%clk 0:00:11]}  Kh8 {[%clk 0:00:05]} 66. Rc8+ {[%clk 0:00:10]}  Kg7 {[%clk 0:00:05]} 67. Rg8+ {[%clk 0:00:11]}  Kh6 {[%clk 0:00:06]} 68. Ng4+ {[%clk 0:00:10]}  Kh7 {[%clk 0:00:06]} 69. Nf6+ {[%clk 0:00:09]}  Kh6 {[%clk 0:00:06]} 70. Rd8 {[%clk 0:00:09]}  Ra1 {[%clk 0:00:06]} 71. d6 {[%clk 0:00:10]}  Ra7 {[%clk 0:00:06]} 72. Ke6 {[%clk 0:00:10]}  Kg7 {[%clk 0:00:06]} 73. Rd7+ {[%clk 0:00:10]}  Kh8 {[%clk 0:00:06]} 74. Ng8 {[%clk 0:00:09]}  Ra8 {[%clk 0:00:06]} 75. Ne7 {[%clk 0:00:08]}  Rb8 {[%clk 0:00:04]} 76. Rc7 {[%clk 0:00:08]}  Ra8 {[%clk 0:00:00]} 77. Rc8+ {[%clk 0:00:08]} 1-0

[Event "December 5 Early 2023"]
[Site "https://www.chess.com"]
[Date "2023.12.05"]
[Round "1"]
[White "Dmitrenko, Viktor"]
[Black "Timerkhanov, Alexander"]
[Result "1/2-1/2"]
[Board "136"]
[TimeControl "180+1"]
[WhiteFideId "14110270"]
[BlackFideId "24177938"]
[WhiteElo "2373"]
[BlackElo "2664"]
[WhiteTeam "UKR"]
[BlackTeam "RUS"]
[WhiteClock "0:00:26"]
[BlackClock "0:00:30"]

1. d4 {[%clk 0:02:04]}  c6 {[%clk 0:03:00]} 2. e3 {[%clk 0:02:04]}  d5 {[%clk 0:03:00]} 3. c4 {[%clk 0:02:04]}  Nf6 {[%clk 0:03:00]} 4. Nc3 {[%clk 0:02:05]}  a6 {[%clk 0:02:59]} 5. Nf3 {[%clk 0:02:06]}  Bf5 {[%clk 0:02:58]} 6. b3 {[%clk 0:02:00]}  e6 {[%clk 0:02:58]} 7. Bd3 {[%clk 0:01:59]}  Bg6 {[%clk 0:02:57]} 8. O-O {[%clk 0:01:58]}  Nbd7 {[%clk 0:02:57]} 9. Qe2 {[%clk 0:01:56]}  Bb4 {[%clk 0:02:51]} 10. Bd2 {[%clk 0:01:53]}  a5 {[%clk 0:02:46]} 11. a3 {[%clk 0:01:48]}  Bxc3 {[%clk 0:02:46]} 12. Bxc3 {[%clk 0:01:48]}  O-O {[%clk 0:02:47]} 13. Bxg6 {[%clk 0:01:41]}  hxg6 {[%clk 0:02:47]} 14. Nd2 {[%clk 0:01:42]}  Re8 {[%clk 0:02:29]} 15. e4 {[%clk 0:01:41]}  e5 {[%clk 0:02:30]} 16. cxd5 {[%clk 0:01:34]}  exd4 {[%clk 0:02:11]} 17. Bxd4 {[%clk 0:01:32]}  Nxd5 {[%clk 0:02:11]} 18. Qf3 {[%clk 0:01:25]}  N5f6 {[%clk 0:02:01]} 19. Rfd1 {[%clk 0:01:22]}  Qe7 {[%clk 0:01:55]} 20. Re1 {[%clk 0:01:20]}  Ne5 {[%clk 0:01:54]} 21. Qc3 {[%clk 0:01:17]}  Rad8 {[%clk 0:01:48]} 22. Bb6 {[%clk 0:01:11]}  Rd3 {[%clk 0:01:36]} 23. Qc2 {[%clk 0:01:10]}  a4 {[%clk 0:01:24]} 24. bxa4 {[%clk 0:01:09]}  Rxa3 {[%clk 0:01:23]} 25. Rxa3 {[%clk 0:01:03]}  Qxa3 {[%clk 0:01:22]} 26. a5 {[%clk 0:01:03]}  Qd3 {[%clk 0:01:16]} 27. Qb2 {[%clk 0:00:56]}  Nc4 {[%clk 0:01:08]} 28. Nxc4 {[%clk 0:00:55]}  Qxc4 {[%clk 0:01:09]} 29. f3 {[%clk 0:00:55]}  Nd7 {[%clk 0:01:01]} 30. Bf2 {[%clk 0:00:53]}  Ne5 {[%clk 0:01:00]} 31. Rc1 {[%clk 0:00:49]}  Qa6 {[%clk 0:00:58]} 32. Qb6 {[%clk 0:00:40]}  Qxb6 {[%clk 0:00:45]} 33. Bxb6 {[%clk 0:00:39]}  Nd7 {[%clk 0:00:38]} 34. Bd4 {[%clk 0:00:32]}  Ra8 {[%clk 0:00:36]} 35. Rb1 {[%clk 0:00:32]}  Rxa5 {[%clk 0:00:31]} 36. Rxb7 {[%clk 0:00:26]}  Nf6 {[%clk 0:00:30]} 1/2-1/2

[Event "December 5 Early 2023"]
[Site "https://www.chess.com"]
[Date "2023.12.05"]
[Round "1"]
[White "Belov, Alexei"]
[Black "Bolat, Inayat"]
[Result "0-1"]
[Board "137"]
[TimeControl "180+1"]
[WhiteFideId "4128206"]
[BlackFideId "13733125"]
[WhiteElo "2662"]
[BlackElo "2373"]
[WhiteTeam "RUS"]
[BlackTeam "KAZ"]
[WhiteClock "0:00:25"]
[BlackClock "0:00:38"]

1. e4 {[%clk 0:03:00]}  e5 {[%clk 0:01:54]} 2. Nf3 {[%clk 0:03:00]}  Nc6 {[%clk 0:01:54]} 3. Bb5 {[%clk 0:03:00]}  a6 {[%clk 0:01:53]} 4. Ba4 {[%clk 0:03:00]}  d6 {[%clk 0:01:54]} 5. c3 {[%clk 0:03:00]}  Bd7 {[%clk 0:01:51]} 6. d4 {[%clk 0:03:00]}  g6 {[%clk 0:01:50]} 7. O-O {[%clk 0:02:59]}  Bg7 {[%clk 0:01:50]} 8. dxe5 {[%clk 0:02:59]}  Nxe5 {[%clk 0:01:47]} 9. Nxe5 {[%clk 0:02:59]}  dxe5 {[%clk 0:01:44]} 10. Bg5 {[%clk 0:03:00]}  Ne7 {[%clk 0:01:35]} 11. Nd2 {[%clk 0:02:47]}  O-O {[%clk 0:01:32]} 12. Bb3 {[%clk 0:02:30]}  h6 {[%clk 0:01:31]} 13. Be3 {[%clk 0:02:28]}  Kh7 {[%clk 0:01:30]} 14. Qe2 {[%clk 0:02:16]}  Qe8 {[%clk 0:01:18]} 15. Rfe1 {[%clk 0:02:09]}  f5 {[%clk 0:01:13]} 16. exf5 {[%clk 0:02:07]}  gxf5 {[%clk 0:01:12]} 17. Rad1 {[%clk 0:01:50]}  b6 {[%clk 0:01:10]} 18. f4 {[%clk 0:01:43]}  Ng6 {[%clk 0:01:04]} 19. fxe5 {[%clk 0:01:41]}  f4 {[%clk 0:01:01]} 20. Bf2 {[%clk 0:01:32]}  Nxe5 {[%clk 0:01:01]} 21. Nc4 {[%clk 0:01:06]}  f3 {[%clk 0:00:49]} 22. Qe4+ {[%clk 0:00:44]}  Bf5 {[%clk 0:00:47]} 23. Qh4 {[%clk 0:00:43]}  Qg6 {[%clk 0:00:43]} 24. Bg3 {[%clk 0:00:35]}  f2+ {[%clk 0:00:38]} 25. Bxf2 {[%clk 0:00:25]}  Nf3+ {[%clk 0:00:38]} 0-1